bitfinex/quotes_ETHUSD_20250425
["timestamp","ask_amount","ask_price","bid_price","bid_amount"]
[1745575780317,0.15,1781.3,1781.1,5.6143962]
[1745575780517,0.15,1781.3,1781.0,5.531]
[1745575780722,0.15,1781.1,1781.0,5.531]
[1745575780914,0.15,1781.1,1781.0,11.14582313]
[1745575781076,0.15,1781.3,1781.1,5.61450788]
[1745575781277,0.15,1781.4,1781.2,5.61419267]
[1745575781476,0.15,1781.4,1781.1,5.61450788]
[1745575781477,0.15,1781.3,1781.1,5.61432967]
[1745575783519,0.15,1781.3,1781.0,12.82174658]
[1745575783694,0.15,1781.3,1781.0,18.4363502]
[1745575783897,0.15,1781.3,1781.1,5.61445909]
[1745575784406,0.75666594,1781.4,1781.1,5.61445909]
[1745575784716,0.15,1781.3,1781.1,5.61445909]
[1745575784918,0.15,1781.2,1781.1,5.61445909]
[1745575785287,0.15,1781.3,1781.1,5.61445909]
[1745575785486,0.15,1781.2,1781.1,5.61445909]
[1745575785883,0.15,1781.3,1781.1,5.61445909]
[1745575786093,0.15,1781.2,1781.1,5.61445909]
[1745575788888,6.75666594,1781.4,1781.1,5.61445909]
[1745575788889,0.15,1781.3,1781.1,11.22877038]
[1745575789194,0.15,1781.3,1781.2,5.61419267]
[1745575789394,6.15,1781.4,1781.2,5.61419267]
[1745575789800,6.15,1781.4,1781.2,5.61403914]
[1745575790006,0.15,1781.3,1781.2,5.61403914]
[1745575791243,0.15,1781.4,1781.2,5.61403914]
[1745575791427,0.15,1781.3,1781.2,5.61403914]
[1745575792103,0.15,1781.4,1781.2,5.61403914]
[1745575792304,6.15,1781.5,1781.3,5.61378333]
[1745575792931,6.15,1781.5,1781.2,6.99752983]
[1745575793302,6.15,1781.5,1781.2,6.9975214]
[1745575793504,6.15,1781.5,1781.3,5.61375293]
[1745575793707,0.15,1781.4,1781.3,1.26112743]
[1745575794020,0.15,1781.4,1781.2,5.61403215]
[1745575794209,0.15,1781.3,1781.2,5.61403215]
[1745575794842,0.15,1781.4,1781.2,5.61403215]
[1745575795050,0.15,1781.3,1781.2,5.61403215]
[1745575796431,6.0,1781.5,1781.3,5.61370833]
[1745575796629,6.15,1781.5,1781.3,5.61370833]
[1745575796834,6.0,1781.5,1781.4,5.61356236]
[1745575797222,6.15,1781.5,1781.4,5.61356236]
[1745575798818,6.15,1781.5,1781.3,11.22737933]
[1745575799017,6.15,1781.5,1781.4,5.61356236]
[1745575799561,6.15,1781.5,1781.3,5.61365533]
[1745575799733,6.15,1781.5,1781.3,6.2949334]
[1745575800662,6.15,1781.5,1781.4,5.61356236]
[1745575800955,0.15,1781.4,1781.1,6.37721428]
[1745575801114,0.15,1781.4,1781.2,5.61414415]
[1745575801321,0.15,1781.4,1781.1,5.61447848]
[1745575801322,0.15,1781.2,1781.1,5.61447848]
[1745575801721,0.15,1781.2,1781.0,11.14562961]
[1745575801921,0.15,1781.2,1781.0,12.90168408]
[1745575802121,0.15,1781.2,1781.1,5.61450788]
[1745575802365,0.15,1781.3,1781.1,5.61450788]
[1745575802669,6.15,1781.5,1781.4,5.61356236]
[1745575803626,6.15,1781.5,1781.3,0.8002]
[1745575804125,0.15,1781.3,1781.1,5.61437241]
[1745575804333,0.15,1781.3,1781.1,1.85161547]
[1745575804560,0.15,1781.3,1781.1,7.46600876]
[1745575804739,0.15,1781.3,1781.1,7.46594011]
[1745575805060,0.15,1781.3,1781.1,13.08028591]
[1745575805257,0.15,1781.3,1781.2,5.61419267]
[1745575805438,0.15,1781.3,1781.1,7.46594011]
[1745575805836,0.15,1781.4,1781.2,6.36078668]
[1745575806163,6.15,1781.5,1781.4,5.61356236]
[1745575806324,6.15,1781.5,1781.3,5.6138775]
[1745575806325,0.15,1781.4,1781.3,5.6138775]
[1745575806758,0.15,1781.4,1781.2,6.36060209]
[1745575807458,0.15,1781.4,1781.3,5.6138775]
[1745575808373,0.15,1781.4,1781.2,6.36056982]
[1745575809074,0.15,1781.4,1781.2,11.97453837]
[1745575809280,0.15,1781.4,1781.2,6.36056256]
[1745575809631,0.15,1781.4,1781.3,7.05138729]
[1745575809865,6.0,1781.6,1781.3,7.05138729]
[1745575809866,0.15,1781.5,1781.4,5.61343069]
[1745575810066,6.15,1781.6,1781.5,5.61324726]
[1745575810272,6.15,1781.6,1781.3,6.24972642]
[1745575810469,6.15,1781.6,1781.4,5.61346163]
[1745575811857,0.15,1781.3,1781.2,5.38]
[1745575812034,0.15,1781.3,1781.0,5.61459868]
[1745575812235,0.15,1781.2,1781.0,5.61459868]
[1745575812426,0.90666594,1781.2,1780.8,10.99527636]
[1745575812631,0.15,1781.1,1780.8,12.177694]
[1745575812979,0.15,1781.1,1780.9,5.61513641]
[1745575813440,0.15,1781.1,1780.9,5.61513148]
[1745575814174,0.15,1781.1,1781.0,5.61482313]
[1745575815645,0.15,1781.1,1780.9,5.61491386]
[1745575815845,0.15,1781.1,1781.0,0.56149139]
[1745575816261,0.15,1781.1,1781.0,6.17631452]
[1745575816774,0.15,1781.1,1780.9,5.61491386]
[1745575817261,0.15,1781.0,1780.9,5.61491386]
[1745575817458,0.15,1781.3,1780.9,5.61491386]
[1745575817659,0.7867,1781.4,1780.8,6.56241764]
[1745575817660,0.15,1781.2,1781.1,5.61434616]
[1745575818341,0.15,1781.2,1781.0,5.61469161]
[1745575818547,0.15,1781.2,1781.0,6.73760138]
[1745575818747,0.15,1781.2,1781.0,5.61462325]
[1745575819060,0.15,1781.1,1781.0,5.6146139]
[1745575820902,0.15,1780.6,1780.1,0.8081]
[1745575821184,0.15,1780.6,1780.4,5.61657622]
[1745575821372,0.15,1780.6,1780.5,5.61639988]
[1745575821682,0.15,1780.6,1780.5,6.73969554]
[1745575822272,0.15,1780.7,1780.6,5.61608446]
[1745575822471,0.805,1780.9,1780.6,5.61608446]
[1745575822472,0.15,1780.8,1780.6,5.61608446]
[1745575822684,0.15,1781.0,1780.7,5.61576907]
[1745575822859,0.15,1780.9,1780.7,5.61576907]
[1745575823189,0.15,1780.9,1780.7,6.73893907]
[1745575823486,0.15,1780.9,1780.7,6.73876815]
[1745575823668,0.15,1780.9,1780.7,1.12317]
[1745575823876,0.15,1780.6,1780.4,6.0561]
[1745575824067,0.15,1780.6,1780.4,11.67271667]
[1745575824258,0.15,1780.6,1780.5,5.61613317]
[1745575824462,0.15,1780.6,1780.5,1.23538543]
[1745575824957,0.15,1780.6,1780.5,5.61639988]
[1745575825183,0.15,1780.6,1780.4,11.67280041]
[1745575825787,0.15,1780.6,1780.4,11.67264111]
[1745575826092,0.15,1780.6,1780.4,11.67258963]
[1745575826245,0.15,1780.6,1780.4,10.86448963]
[1745575826857,0.15,1780.6,1780.4,6.89613409]
[1745575827391,0.15,1780.6,1780.5,5.61639988]
[1745575827598,0.15,1780.7,1780.5,5.61639988]
[1745575828096,6.15,1780.8,1780.6,5.61608446]
[1745575828265,0.15,1780.7,1780.6,6.73931468]
[1745575828460,0.15,1780.7,1780.6,6.7390952]
[1745575831397,6.0,1780.8,1780.7,5.61576907]
[1745575831698,0.15,1780.9,1780.8,5.61545372]
[1745575832658,0.15,1780.9,1780.6,6.73911763]
[1745575832859,0.15,1780.8,1780.7,6.28952616]
[1745575833460,0.15,1780.9,1780.6,5.61586452]
[1745575833666,0.15,1780.8,1780.7,5.61566194]
[1745575835093,0.15,1780.9,1780.8,5.61545372]
[1745575835297,0.15,1780.8,1780.7,5.61566194]
[1745575836214,0.15,1780.8,1780.6,5.61590889]
[1745575836418,0.15,1780.8,1780.7,6.17735996]
[1745575837807,0.33040281,1780.8,1780.7,6.17735996]
[1745575838118,0.33040281,1780.8,1780.7,5.61576907]
[1745575840007,0.18040281,1780.8,1780.7,5.61576907]
[1745575840211,0.15,1780.8,1780.7,5.61576907]
[1745575840414,0.33040281,1780.8,1780.7,5.61576907]
[1745575840608,0.18040281,1780.8,1780.7,5.61576907]
[1745575840928,0.15,1780.8,1780.7,6.73893687]
[1745575841109,0.33040281,1780.8,1780.7,6.73893687]
[1745575841292,0.15,1780.8,1780.7,6.73893687]
[1745575841732,0.33040281,1780.8,1780.5,10.86518668]
[1745575842031,0.18041785,1780.7,1780.6,5.61600101]
[1745575842231,0.18041785,1780.7,1780.6,5.61608446]
[1745575842453,0.18041785,1780.7,1780.5,5.249]
[1745575842617,0.15,1780.6,1780.5,5.249]
[1745575842810,0.32689003,1780.6,1780.5,5.249]
[1745575843138,0.8008,1780.8,1780.5,5.249]
[1745575843139,0.9508,1780.8,1780.7,5.61576907]
[1745575843348,0.15,1780.9,1780.8,5.61545372]
[1745575845711,0.15,1780.9,1780.7,11.23133368]
[1745575845908,0.15,1780.8,1780.7,5.61556461]
[1745575848011,6.15,1781.2,1781.0,5.61482313]
[1745575848216,6.15,1781.2,1781.1,5.61450788]
[1745575848441,0.15,1781.2,1781.1,5.61450788]
[1745575848647,0.15,1781.4,1781.2,5.61419267]
[1745575848853,0.15,1781.5,1781.4,5.61356236]
[1745575849236,6.15,1781.6,1781.5,5.61324726]
[1745575851345,6.15,1781.6,1781.4,5.61337298]
[1745575851553,0.15,1781.5,1781.4,5.61337298]
[1745575852279,0.1,1781.9,1781.4,1.20121136]
[1745575852564,0.1,1781.9,1781.8,5.61230216]
[1745575854221,0.25,1781.9,1781.7,11.58848276]
[1745575854418,0.25,1781.9,1781.8,5.61230216]
[1745575855128,0.44171665,1781.9,1781.8,5.61230216]
[1745575855465,0.29171665,1781.9,1781.8,7.33237239]
[1745575856453,0.44171665,1781.9,1781.8,7.33237239]
[1745575856669,0.29171665,1781.9,1781.8,7.33237239]
[1745575858776,0.29171665,1781.9,1781.8,5.61230216]
[1745575859130,0.7579,1781.8,1781.7,5.22]
[1745575859325,0.7579,1781.8,1781.7,5.61261716]
[1745575859540,1.09943848,1781.8,1781.7,5.61261716]
[1745575859762,0.9079,1781.8,1781.7,5.61261716]
[1745575860365,0.9079,1781.8,1781.6,5.61280084]
[1745575860539,0.9079,1781.8,1781.6,5.6127987]
[1745575860939,0.19128158,1781.7,1781.6,5.6127987]
[1745575861241,0.9079,1781.8,1781.6,5.6127987]
[1745575861456,0.19136029,1781.7,1781.6,5.6127987]
[1745575861657,0.9079,1781.8,1781.6,5.6127987]
[1745575861868,0.19167515,1781.7,1781.6,5.6127987]
[1745575862170,0.15,1781.7,1781.6,5.6127987]
[1745575862933,0.15,1781.8,1781.7,5.61261716]
[1745575863178,0.39284304,1781.9,1781.8,5.61230216]
[1745575863479,0.1,1781.9,1781.8,5.61230216]
[1745575863660,0.25,1781.9,1781.8,5.61230216]
[1745575863862,0.1,1781.9,1781.8,5.61230216]
[1745575864072,0.25,1781.9,1781.8,5.61230216]
[1745575864582,0.1,1781.9,1781.8,5.61230216]
[1745575864729,0.25,1781.9,1781.8,5.61230216]
[1745575864934,0.25,1781.9,1781.7,10.83061716]
[1745575865137,0.15,1781.8,1781.7,10.83050128]
[1745575866877,0.1,1781.9,1781.8,5.61230216]
[1745575870971,0.27891743,1781.9,1781.8,5.61230216]
[1745575871168,0.1,1781.9,1781.8,5.61230216]
[1745575871337,0.27919124,1781.9,1781.8,5.61230216]
[1745575871536,0.1,1781.9,1781.8,7.49676498]
[1745575871733,0.27919124,1781.9,1781.8,7.49676498]
[1745575871977,0.1,1781.9,1781.8,7.49676498]
[1745575872184,1e-08,1781.9,1781.8,12.05133092]
[1745575872496,0.9641,1782.5,1782.2,5.61104253]
[1745575872700,0.15,1782.5,1782.4,5.61041292]
[1745575872996,0.9641,1782.7,1782.6,5.60978346]
[1745575873497,0.15,1782.7,1782.6,5.60978346]
[1745575873697,7.0641,1782.9,1782.7,5.60916404]
[1745575873858,0.15,1782.8,1782.7,5.60916404]
[1745575875584,0.15,1782.8,1782.7,6.73104512]
[1745575876660,6.9141,1782.9,1782.7,6.73104512]
[1745575876661,6.9141,1782.9,1782.8,5.60915413]
[1745575876860,0.1,1782.9,1782.8,5.60915413]
[1745575877515,0.1,1782.9,1782.8,6.39035413]
[1745575877678,0.1,1782.9,1782.8,7.70249405]
[1745575879810,0.15,1782.8,1782.7,6.73104512]
[1745575880008,0.15,1782.8,1782.7,5.60916404]
[1745575880509,0.15,1782.8,1782.6,5.6095081]
[1745575880696,0.15,1782.8,1782.7,5.60946878]
[1745575880896,0.15,1782.8,1782.6,5.60955935]
[1745575881103,0.15,1782.8,1782.7,5.60946878]
[1745575881295,0.15,1782.8,1782.7,6.73137159]
[1745575884089,0.15,1782.8,1782.5,5.218]
[1745575884408,0.10829776,1782.7,1782.5,5.218]
[1745575884588,0.15,1782.6,1782.5,5.218]
[1745575884789,0.25737572,1782.6,1782.5,10.82809817]
[1745575886615,0.25737572,1782.6,1782.5,5.218]
[1745575886780,0.25737572,1782.6,1782.5,10.82809817]
[1745575887485,0.15,1782.4,1782.2,5.61088988]
[1745575887819,0.10613402,1782.3,1782.1,5.61123726]
[1745575888013,0.15,1782.4,1782.2,5.61104253]
[1745575888310,0.15,1782.4,1782.3,5.61072771]
[1745575888811,0.15,1782.4,1782.2,11.22163644]
[1745575889014,0.15,1782.4,1782.2,12.50753738]
[1745575889311,0.15,1782.4,1782.3,5.61072771]
[1745575889502,0.15,1782.4,1782.2,6.89671734]
[1745575889903,0.15,1782.4,1782.3,5.61072771]
[1745575890514,0.15,1782.4,1782.2,6.89671734]
[1745575890680,0.15,1782.3,1782.2,6.89671734]
[1745575891301,0.15,1782.3,1782.1,1.63737298]
[1745575891502,0.15,1782.2,1782.0,5.151]
[1745575891715,0.15,1782.2,1782.0,10.76248324]
[1745575892015,0.15,1782.1,1781.8,16.839]
[1745575892215,0.15,1781.8,1781.7,5.151]
[1745575892414,0.7569,1782.0,1781.4,0.7645]
[1745575892415,0.15,1781.7,1781.6,5.61286672]
[1745575892716,0.15,1781.5,1781.3,5.61364273]
[1745575892891,0.15,1781.5,1781.3,5.61366058]
[1745575893417,0.15,1781.5,1781.4,5.61356236]
[1745575894823,0.15,1781.6,1781.5,5.61324726]
[1745575895012,0.15,1781.6,1781.5,6.73592822]
[1745575895619,0.15,1781.6,1781.3,5.61365718]
[1745575895828,0.15,1781.5,1781.4,5.61355267]
[1745575896022,0.15,1781.5,1781.3,5.61365718]
[1745575896323,0.15,1781.9,1781.5,0.8265]
[1745575896495,0.15,1781.7,1781.6,5.61268587]
[1745575896823,0.15,1781.8,1781.7,5.61261716]
[1745575897430,0.15,1781.7,1781.6,5.61268587]
[1745575901209,0.15,1781.8,1781.7,5.61261716]
[1745575901527,0.15,1781.9,1781.8,5.61230216]
[1745575901732,0.15,1781.9,1781.8,6.73479409]
[1745575902098,0.15,1782.0,1781.9,5.6119872]
[1745575902499,0.15,1782.1,1782.0,5.61167227]
[1745575902704,0.15,1782.2,1782.1,5.61135738]
[1745575902916,0.15,1782.2,1782.1,6.73366035]
[1745575905433,0.15,1782.2,1782.1,5.61135738]
[1745575910132,0.15,1782.1,1782.0,5.152]
[1745575910444,0.9544,1782.1,1781.7,5.117]
[1745575910627,0.15,1781.8,1781.7,10.72948288]
[1745575911199,0.15,1781.8,1781.7,5.117]
[1745575911405,0.15,1781.8,1781.7,10.72961716]
[1745575912340,0.801,1782.4,1782.3,5.61072771]
[1745575913236,6.0,1782.5,1782.3,5.61072771]
[1745575913428,6.0,1782.5,1782.3,5.61050234]
[1745575914451,6.0,1782.5,1782.3,11.22103759]
[1745575914945,6.0,1782.5,1782.3,5.61050234]
[1745575915934,6.0,1782.5,1782.4,5.61041292]
[1745575916130,6.0,1782.8,1782.4,5.61041292]
[1745575916446,6.0,1782.8,1782.5,5.60993672]
[1745575917354,6.9906,1782.8,1782.4,5.61023398]
[1745575917660,6.9906,1782.8,1782.5,5.60983993]
[1745575917819,6.0,1782.8,1782.5,5.60983993]
[1745575918629,6.0,1782.8,1782.5,11.21977019]
[1745575918827,6.0,1782.8,1782.5,5.60983993]
[1745575919032,6.0,1782.8,1782.3,0.7984]
[1745575919232,6.0,1782.8,1782.5,5.60986134]
[1745575919660,9.906,1782.9,1782.5,5.60986134]
[1745575919849,0.7721,1782.7,1782.4,5.61040506]
[1745575920163,0.7721,1782.7,1782.3,5.61050332]
[1745575920461,0.7721,1782.7,1782.1,10.7281344]
[1745575920462,1.57796594,1782.6,1782.1,10.7281344]
[1745575920662,2.03576253,1782.6,1782.1,10.7281344]
[1745575921461,2.03576253,1782.6,1782.2,5.61099901]
[1745575922164,2.03576253,1782.6,1782.1,10.72821806]
[1745575922458,2.03576253,1782.6,1782.2,5.6109243]
[1745575922659,2.03576253,1782.6,1782.1,10.72821806]
[1745575922861,1.21446253,1782.6,1782.1,10.72821806]
[1745575923161,0.7825,1782.5,1782.1,10.72821806]
[1745575924583,0.7825,1782.5,1782.2,5.61104012]
[1745575924734,0.7825,1782.5,1782.2,5.61082576]
[1745575925082,0.7825,1782.5,1782.1,5.117]
[1745575925236,0.7825,1782.5,1782.1,10.72820524]
[1745575925551,6.7825,1782.5,1782.1,10.72820524]
[1745575926558,6.7825,1782.5,1782.1,10.72817152]
[1745575926867,6.7825,1782.5,1782.2,5.61095965]
[1745575927176,6.7825,1782.5,1782.2,5.61089482]
[1745575927880,6.7825,1782.5,1782.2,11.22182206]
[1745575928086,6.7825,1782.5,1782.2,5.61089482]
[1745575928291,6.7825,1782.5,1782.1,5.117]
[1745575928432,7.58219625,1782.5,1782.1,5.117]
[1745575928799,7.58219625,1782.5,1782.1,10.72826233]
[1745575929297,7.58219625,1782.5,1782.1,10.72835543]
[1745575929500,0.7604,1782.3,1782.1,5.117]
[1745575929693,0.7604,1782.3,1782.1,10.72834244]
[1745575930001,0.7604,1782.3,1782.1,10.72817027]
[1745575930589,0.7604,1782.3,1782.1,5.117]
[1745575930763,0.7604,1782.3,1782.1,10.72833558]
[1745575931382,0.7604,1782.3,1782.1,5.61116071]
[1745575931707,0.7604,1782.3,1782.1,5.61114523]
[1745575933171,0.7604,1782.3,1782.0,5.6115176]
[1745575933406,4.58836594,1782.2,1781.8,5.116]
[1745575933607,1.29053659,1782.1,1781.6,5.61268612]
[1745575933920,0.75666594,1781.8,1781.5,5.117]
[1745575934069,0.75666594,1781.8,1781.4,5.61342405]
[1745575934385,0.757,1781.7,1781.4,5.61342405]
[1745575934715,6.757,1781.7,1781.6,5.61293219]
[1745575935403,6.757,1781.7,1781.5,5.61303461]
[1745575939456,6.757,1781.7,1781.6,5.61293219]
[1745575939640,6.757,1781.7,1781.5,5.61301977]
[1745575942167,6.757,1781.7,1781.6,5.61293219]
[1745575942573,6.0,1781.7,1781.6,5.61293219]
[1745575945351,6.0,1781.7,1781.5,5.61301977]
[1745575945650,6.0,1781.7,1781.6,5.61293219]
[1745575945864,6.0,1781.7,1781.4,8.41967806]
[1745575946036,6.0,1781.8,1781.5,5.61322062]
[1745575946471,6.68122,1781.8,1781.4,5.61336135]
[1745575946657,6.0,1781.8,1781.5,11.22619307]
[1745575946852,6.0,1781.8,1781.5,5.6130419]
[1745575947877,6.0,1781.8,1781.5,5.61304071]
[1745575948448,6.75666594,1781.8,1781.4,5.61346295]
[1745575948649,0.8327,1781.5,1780.7,5.9337]
[1745575948851,0.8327,1781.5,1780.9,5.61495684]
[1745575948852,1.58936594,1781.3,1780.9,5.61495684]
[1745575949067,1.58936594,1781.3,1780.8,11.23062556]
[1745575949269,1.58936594,1781.3,1780.9,5.6151288]
[1745575949641,1.53586594,1781.1,1780.5,5.118]
[1745575949845,1.53586594,1781.1,1780.7,5.61564477]
[1745575949846,10.53586594,1781.1,1780.7,5.61564477]
[1745575950296,10.53586594,1781.1,1780.6,5.61586966]
[1745575950583,10.53586594,1781.1,1780.7,5.61566893]
[1745575950944,10.53586594,1781.1,1780.7,5.61561441]
[1745575951164,10.53586594,1781.1,1780.7,11.2312104]
[1745575951369,11.58945253,1781.1,1780.6,5.61581561]
[1745575952268,11.58945253,1781.1,1780.7,5.61557718]
[1745575952856,12.01376077,1781.1,1780.7,5.61557718]
[1745575953052,0.8181,1781.0,1780.6,5.61585658]
[1745575953290,0.8181,1781.0,1780.7,5.61564493]
[1745575954977,6.8181,1781.0,1780.7,5.61564493]
[1745575955176,6.8181,1781.0,1780.6,5.61590816]
[1745575955489,8.02336608,1781.0,1780.6,11.23177619]
[1745575955791,8.02336608,1781.0,1780.6,5.61586803]
[1745575955996,8.02336608,1781.0,1780.6,5.61585242]
[1745575956288,8.02336608,1781.0,1780.6,11.23170562]
[1745575956594,8.02336608,1781.0,1780.6,5.61585155]
[1745575956952,0.7855,1780.8,1780.4,10.73445733]
[1745575957159,0.7855,1780.8,1780.5,5.61623895]
[1745575958260,0.7855,1780.8,1780.5,5.61621108]
[1745575958862,0.7855,1780.8,1780.5,5.61638838]
[1745575959394,0.7855,1780.8,1780.5,5.61621938]
[1745575959889,0.7855,1780.8,1780.5,5.61617165]
[1745575960092,0.7855,1780.8,1780.6,5.61601016]
[1745575960267,0.7855,1780.8,1780.5,5.61619579]
[1745575960783,6.7855,1780.8,1780.5,5.61619579]
[1745575960980,6.7855,1780.8,1780.5,11.23237929]
[1745575961292,6.7855,1780.8,1780.5,5.6161835]
[1745575961694,6.7855,1780.8,1780.5,11.23236689]
[1745575961994,6.7855,1780.8,1780.5,5.61618339]
[1745575962195,0.75666594,1780.7,1780.3,5.61681987]
[1745575962399,6.0,1780.6,1780.4,5.61656052]
[1745575963491,6.0,1780.6,1780.4,5.61650807]
[1745575963665,6.0,1780.6,1780.5,5.61639988]
[1745575965016,6.7654,1781.0,1780.9,5.61513841]
[1745575965222,6.0,1781.0,1780.9,5.61513841]
[1745575968217,0.7654,1781.2,1781.1,5.61450788]
[1745575968503,6.0,1781.3,1781.2,5.61419267]
[1745575970612,0.804,1781.2,1780.8,5.61545372]
[1745575970812,0.804,1781.2,1781.1,5.61450788]
[1745575971122,0.804,1781.2,1781.0,5.61460241]
[1745575972108,0.804,1781.2,1781.1,5.61450788]
[1745575972775,6.0,1781.3,1781.0,5.61463237]
[1745575972986,6.0,1781.3,1781.0,11.229265]
[1745575973180,6.0,1781.3,1781.1,5.61441669]
[1745575973484,6.0,1781.3,1781.1,5.61449447]
[1745575974218,6.0,1781.3,1781.1,5.61437877]
[1745575974416,6.0,1781.3,1781.1,5.61434192]
[1745575974710,6.0,1781.3,1781.1,11.22866316]
[1745575974914,6.0,1781.3,1781.1,5.61432765]
[1745575975291,6.0,1781.3,1781.1,5.6143262]
[1745575976611,6.75666594,1781.3,1780.9,5.61495381]
[1745575976986,7.51336253,1781.3,1780.9,5.6149155]
[1745575977185,7.51336253,1781.3,1781.0,5.61473206]
[1745575977502,7.51336253,1781.3,1781.0,5.61467765]
[1745575977812,6.75666594,1781.3,1781.0,11.22931336]
[1745575978017,6.75666594,1781.3,1781.0,5.61463571]
[1745575978718,6.75666594,1781.3,1781.0,5.6146107]
[1745575979021,6.0,1781.3,1781.1,5.61441349]
[1745575979393,6.0,1781.3,1781.0,5.61460225]
[1745575979985,6.0,1781.3,1781.1,5.61436093]
[1745575980182,6.0,1781.3,1781.2,5.61419267]
[1745575981014,6.0,1781.3,1781.1,5.61436093]
[1745575981926,6.0,1781.3,1781.0,6.73758097]
[1745575982126,6.0,1781.3,1781.1,5.61450069]
[1745575983589,6.0,1781.3,1781.1,11.22878795]
[1745575983782,6.0,1781.3,1781.1,11.22856992]
[1745575983980,6.0,1781.3,1781.1,5.61428266]
[1745575984186,6.0,1781.3,1780.9,5.61502335]
[1745575984388,6.75666594,1781.3,1780.8,0.7658]
[1745575984583,7.51336253,1781.3,1780.8,6.38099091]
[1745575984787,0.7774,1781.2,1780.8,5.61519091]
[1745575985934,0.7774,1781.2,1780.8,11.23041998]
[1745575986131,0.7774,1781.2,1780.8,11.23043969]
[1745575986441,0.7774,1781.2,1780.8,5.61519091]
[1745575986615,0.7774,1781.2,1780.8,6.17671]
[1745575986816,0.7774,1781.2,1780.8,11.7919611]
[1745575987144,0.7774,1781.2,1780.8,6.17671]
[1745575988205,0.75666594,1781.1,1780.6,11.4914405]
[1745575988541,0.75666594,1781.1,1780.8,5.61544231]
[1745575988705,0.75666594,1781.1,1780.7,5.61554414]
[1745575990141,6.0,1781.0,1780.7,5.61554414]
[1745575991612,0.8179,1780.9,1780.7,5.61554414]
[1745575993550,6.0,1781.0,1780.7,6.68909855]
[1745575993854,6.0,1781.0,1780.8,5.61545372]
[1745575994638,6.0,1781.0,1780.9,5.61513841]
[1745575995864,0.29297721,1781.4,1781.2,5.6139705]
[1745575996015,6.779,1781.5,1781.3,6.17527455]
[1745575996214,6.779,1781.5,1781.3,5.613725]
[1745575996452,6.779,1781.5,1781.2,11.22806364]
[1745575996628,6.779,1781.5,1781.2,5.61402807]
[1745575996966,6.779,1781.5,1781.3,5.61376907]
[1745575997316,6.779,1781.5,1781.2,5.6139786]
[1745575997654,6.0,1781.5,1781.3,5.6137592]
[1745575998266,6.7949,1781.6,1781.3,11.22743882]
[1745575998453,6.7949,1781.6,1781.4,5.61349838]
[1745575998965,6.7949,1781.6,1781.3,11.22731139]
[1745575999166,6.7949,1781.6,1781.3,12.06608194]
[1745575999330,6.7949,1781.6,1781.3,6.45241971]
[1745575999665,6.7949,1781.6,1781.3,5.61364916]
[1745576000871,0.52475943,1781.5,1781.3,5.61364916]
[1745576001072,1.28142537,1781.5,1781.1,5.61429628]
[1745576001295,1.28142537,1781.5,1781.0,5.118]
[1745576001296,0.75666594,1781.3,1781.0,5.118]
[1745576001441,0.75666594,1781.3,1781.0,10.73267689]
[1745576001638,0.8054,1781.2,1780.8,5.61545372]
[1745576001860,6.0,1781.3,1781.2,5.61419267]
[1745576002140,9.8054,1781.5,1781.3,5.61385792]
[1745576002967,9.8054,1781.5,1781.2,5.6139869]
[1745576003144,9.8054,1781.5,1781.2,5.6141593]
[1745576003351,9.8054,1781.5,1781.1,5.61431441]
[1745576003567,9.8054,1781.5,1781.1,6.81380226]
[1745576003743,9.8054,1781.5,1781.1,6.81378103]
[1745576007089,9.8054,1781.5,1781.2,5.61406212]
[1745576008391,9.8054,1781.5,1781.1,6.81378103]
[1745576008573,9.8054,1781.5,1781.1,12.42812762]
[1745576008780,9.8054,1781.5,1781.2,5.61415042]
[1745576009581,9.8054,1781.5,1781.2,5.61402201]
[1745576010288,6.0,1781.5,1781.3,5.61377034]
[1745576010484,6.7548,1781.6,1781.4,5.61338161]
[1745576011079,6.0,1781.6,1781.4,5.61333941]
[1745576011394,6.0,1781.6,1781.5,5.61324726]
[1745576011696,7.98705834,1782.0,1781.7,5.61258323]
[1745576011895,3.0,1781.9,1781.7,5.6124891]
[1745576012108,6.8067,1782.0,1781.7,5.61242781]
[1745576012305,6.0,1782.0,1781.9,5.6119872]
[1745576012458,6.0,1782.0,1781.8,5.61212884]
[1745576012654,6.0,1782.0,1781.7,0.56124278]
[1745576012655,6.75666594,1782.0,1781.7,0.56124278]
[1745576012993,6.75666594,1782.0,1781.5,6.4043719]
[1745576013190,0.7973,1781.9,1781.6,5.61274101]
[1745576013697,0.7973,1781.9,1781.5,6.404384]
[1745576013895,0.7973,1781.9,1781.6,5.6128603]
[1745576014201,0.7973,1781.9,1781.5,6.40437398]
[1745576014368,0.7973,1781.9,1781.6,5.61275717]
[1745576014567,0.7973,1781.9,1781.6,5.61272398]
[1745576014994,0.7973,1781.9,1781.6,5.61270508]
[1745576016287,0.7973,1781.9,1781.7,5.61261484]
[1745576016488,6.7973,1781.9,1781.7,5.61261484]
[1745576017094,6.7973,1781.9,1781.6,5.61270508]
[1745576017977,6.7973,1781.9,1781.4,6.37473378]
[1745576017978,6.7973,1781.9,1781.7,5.61240666]
[1745576018163,6.7973,1781.9,1781.8,5.61230216]
[1745576018364,6.0,1781.9,1781.7,5.61240666]
[1745576018700,6.0,1781.9,1781.8,6.38760216]
[1745576021703,9.773,1782.3,1782.0,5.61145798]
[1745576021889,9.773,1782.3,1782.2,5.61104253]
[1745576021890,6.0,1782.3,1782.2,5.61104253]
[1745576022088,6.7952,1782.5,1782.2,5.61104253]
[1745576022286,6.7952,1782.5,1782.2,5.61093329]
[1745576023417,6.7952,1782.5,1782.1,5.61114441]
[1745576023611,6.7952,1782.5,1782.1,11.22233012]
[1745576023781,6.7952,1782.5,1782.1,5.61114244]
[1745576024182,6.7952,1782.5,1782.1,11.22230471]
[1745576024597,6.7952,1782.5,1782.3,5.61071519]